[Event "2026 Biel Blitz Open"]
[Site "Biel, CH"]
[Date "2026.07.19"]
[Round "6"]
[White "Ragios, Konstantinos"]
[Black "Omar, Noaman"]
[Result "0-1"]
[Board "20"]
[TimeControl "180+2"]
[WhiteFideId "4210484"]
[BlackFideId "9300244"]
[WhiteElo "1957"]
[BlackElo "2274"]
[BlackTitle "IM"]
[WhiteClock "0:00:49"]
[BlackClock "0:01:49"]
[Variant "Standard"]
[EndDate "2026.07.19"]
[EndTime "13:26:14"]

1. e4 {[%clk 0:03:03]}  c6 {[%clk 0:03:03]} 2. Nf3 {[%clk 0:03:03]}  d5 {[%clk 0:03:04]} 3. Nc3 {[%clk 0:03:04]}  Bg4 {[%clk 0:03:02]}
4. h3 {[%clk 0:03:04]}  Bh5 {[%clk 0:03:03]} 5. exd5 {[%clk 0:02:58]}  cxd5 {[%clk 0:03:04]} 6. d4 {[%clk 0:02:58]}  Nc6 {[%clk 0:03:04]}
7. Bb5 {[%clk 0:02:54]}  Bxf3 {[%clk 0:02:44]} 8. Qxf3 {[%clk 0:02:54]}  e6 {[%clk 0:02:45]} 9. O-O {[%clk 0:02:25]}  g6 {[%clk 0:02:46]}
10. Bf4 {[%clk 0:02:13]}  Bg7 {[%clk 0:02:46]} 11. Qe3 {[%clk 0:01:57]}  Nge7 {[%clk 0:02:41]} 12. Bh6 {[%clk 0:01:48]}  Nf5 {[%clk 0:02:35]}
13. Bxc6+ {[%clk 0:01:42]}  bxc6 {[%clk 0:02:36]} 14. Bg5 {[%clk 0:01:41]}  Nxe3 {[%clk 0:02:30]} 15. Bxd8 {[%clk 0:01:41]}  Nxf1 {[%clk 0:02:20]}
16. Bg5 {[%clk 0:01:41]}  h6 {[%clk 0:02:15]} 17. Bf4 {[%clk 0:01:39]}  g5 {[%clk 0:02:13]} 18. Bc1 {[%clk 0:01:39]}  Ng3 {[%clk 0:02:08]}
19. fxg3 {[%clk 0:01:38]}  Bxd4+ {[%clk 0:02:08]} 20. Kf1 {[%clk 0:01:39]}  f5 {[%clk 0:02:01]} 21. Ne2 {[%clk 0:01:39]}  Be5 {[%clk 0:02:02]}
22. Rb1 {[%clk 0:01:38]}  Kd7 {[%clk 0:02:01]} 23. Be3 {[%clk 0:01:29]}  Bd6 {[%clk 0:02:02]} 24. Rd1 {[%clk 0:01:27]}  e5 {[%clk 0:02:02]}
25. Bc1 {[%clk 0:01:22]}  Ke6 {[%clk 0:02:02]} 26. Ng1 {[%clk 0:01:17]}  a5 {[%clk 0:01:57]} 27. Nf3 {[%clk 0:01:17]}  a4 {[%clk 0:01:54]}
28. Re1 {[%clk 0:01:17]}  c5 {[%clk 0:01:52]} 29. Rd1 {[%clk 0:00:55]}  Rhf8 {[%clk 0:01:47]} 30. Ke2 {[%clk 0:00:54]}  e4 {[%clk 0:01:48]}
31. Nd2 {[%clk 0:00:48]}  Bxg3 {[%clk 0:01:48]} 32. Nf1 {[%clk 0:00:49]}  Be5 {[%clk 0:01:49]} 33. Ne3 {[%clk 0:00:49]}  Rad8 {[%clk 0:01:49]} 0-1

[Event "2026 Biel Blitz Open"]
[Site "Biel, CH"]
[Date "2026.07.19"]
[Round "6"]
[White "Gluckman, David"]
[Black "Kwiatkowski, Maciej"]
[Result "1-0"]
[Board "21"]
[TimeControl "180+2"]
[WhiteFideId "14300010"]
[BlackFideId "1360175"]
[WhiteElo "2240"]
[BlackElo "1967"]
[WhiteTitle "IM"]
[WhiteClock "0:01:56"]
[BlackClock "0:01:04"]
[Variant "Standard"]
[EndDate "2026.07.19"]
[EndTime "13:26:54"]

1. Nf3 {[%clk 0:03:03]}  Nf6 {[%clk 0:03:02]} 2. c4 {[%clk 0:03:03]}  e6 {[%clk 0:03:02]} 3. g3 {[%clk 0:03:04]}  d5 {[%clk 0:03:01]}
4. Bg2 {[%clk 0:03:05]}  Be7 {[%clk 0:03:01]} 5. O-O {[%clk 0:03:05]}  O-O {[%clk 0:03:02]} 6. b3 {[%clk 0:02:56]}  c6 {[%clk 0:02:58]}
7. d4 {[%clk 0:02:45]}  Nbd7 {[%clk 0:02:52]} 8. Bb2 {[%clk 0:02:43]}  Ne4 {[%clk 0:02:45]} 9. Nfd2 {[%clk 0:02:33]}  Nxd2 {[%clk 0:02:42]}
10. Nxd2 {[%clk 0:02:33]}  Nf6 {[%clk 0:02:43]} 11. Re1 {[%clk 0:02:23]}  Bb4 {[%clk 0:02:20]} 12. a3 {[%clk 0:02:23]}  Be7 {[%clk 0:02:20]}
13. Qc2 {[%clk 0:02:23]}  Bd7 {[%clk 0:02:19]} 14. e4 {[%clk 0:02:21]}  dxe4 {[%clk 0:02:16]} 15. Nxe4 {[%clk 0:02:22]}  Nxe4 {[%clk 0:02:05]}
16. Bxe4 {[%clk 0:02:23]}  h6 {[%clk 0:02:00]} 17. Qe2 {[%clk 0:02:16]}  Bf6 {[%clk 0:02:00]} 18. Rad1 {[%clk 0:02:13]}  Qb6 {[%clk 0:01:48]}
19. Bc2 {[%clk 0:02:12]}  Rad8 {[%clk 0:01:33]} 20. h4 {[%clk 0:01:59]}  Be8 {[%clk 0:01:22]} 21. Qe4 {[%clk 0:01:58]}  g6 {[%clk 0:01:21]}
22. h5 {[%clk 0:01:59]}  c5 {[%clk 0:01:04]} 23. dxc5 {[%clk 0:01:56]} 1-0

[Event "2026 Biel Blitz Open"]
[Site "Biel, CH"]
[Date "2026.07.19"]
[Round "6"]
[White "Kolly, Jacques"]
[Black "Osmani, Xhevdet"]
[Result "1/2-1/2"]
[Board "22"]
[TimeControl "180+2"]
[WhiteFideId "1302183"]
[BlackFideId "22104569"]
[WhiteElo "2203"]
[BlackElo "1959"]
[WhiteTitle "FM"]
[WhiteClock "0:03:02"]
[BlackClock "0:03:02"]
[Variant "Standard"]
[EndDate "2026.07.19"]
[EndTime "13:38:39"]

1. d4 {[%clk 0:03:02]}  c6 {[%clk 0:03:04]} 2. c4 {[%clk 0:03:05]}  d5 {[%clk 0:03:05]} 3. Nc3 {[%clk 0:03:05]}  Nf6 {[%clk 0:03:06]}
4. Nf3 {[%clk 0:03:03]}  e6 {[%clk 0:03:07]} 5. Bg5 {[%clk 0:03:04]}  Be7 {[%clk 0:03:09]} 6. e3 {[%clk 0:03:05]}  Nbd7 {[%clk 0:03:10]}
7. Qc2 {[%clk 0:03:07]}  b6 {[%clk 0:03:11]} 8. Bd3 {[%clk 0:03:06]}  Bb7 {[%clk 0:03:11]} 9. O-O {[%clk 0:03:05]}  O-O {[%clk 0:03:12]}
10. a3 {[%clk 0:03:04]}  Rc8 {[%clk 0:03:13]} 11. cxd5 {[%clk 0:02:52]}  cxd5 {[%clk 0:03:14]} 12. Qa4 {[%clk 0:02:48]}  a6 {[%clk 0:03:01]}
13. Rac1 {[%clk 0:02:38]}  b5 {[%clk 0:03:02]} 14. Qb3 {[%clk 0:02:32]}  Nb6 {[%clk 0:02:58]} 15. Qa2 {[%clk 0:02:33]}  h6 {[%clk 0:02:56]}
16. Bh4 {[%clk 0:02:34]}  Nc4 {[%clk 0:02:57]} 17. a4 {[%clk 0:02:10]}  b4 {[%clk 0:02:58]} 18. Ne2 {[%clk 0:02:06]}  Nb6 {[%clk 0:02:51]}
19. b3 {[%clk 0:02:07]}  Nfd7 {[%clk 0:02:36]} 20. Bg3 {[%clk 0:02:06]}  Nf6 {[%clk 0:02:34]} 21. Qb1 {[%clk 0:02:07]}  Bd6 {[%clk 0:02:27]}
22. Ne5 {[%clk 0:02:06]}  Ne4 {[%clk 0:02:16]} 23. Bxe4 {[%clk 0:01:53]}  dxe4 {[%clk 0:02:16]} 24. Rxc8 {[%clk 0:01:48]}  Qxc8 {[%clk 0:02:16]}
25. Rc1 {[%clk 0:01:49]}  Qd8 {[%clk 0:02:10]} 26. Nc4 {[%clk 0:01:49]}  Bxg3 {[%clk 0:02:07]} 27. Nxg3 {[%clk 0:01:50]}  Nc8 {[%clk 0:01:57]}
28. Nxe4 {[%clk 0:01:40]}  Qd5 {[%clk 0:01:59]} 29. f3 {[%clk 0:01:41]}  f5 {[%clk 0:02:00]} 30. Nc5 {[%clk 0:01:36]}  Ne7 {[%clk 0:01:38]}
31. Nxb7 {[%clk 0:01:33]}  Qxb7 {[%clk 0:01:38]} 32. Qd3 {[%clk 0:01:28]}  Nd5 {[%clk 0:01:37]} 33. e4 {[%clk 0:01:27]}  fxe4 {[%clk 0:01:27]}
34. fxe4 {[%clk 0:01:28]}  Nc3 {[%clk 0:01:27]} 35. Rf1 {[%clk 0:01:18]}  Rxf1+ {[%clk 0:01:24]} 36. Kxf1 {[%clk 0:01:19]}  Qxe4 {[%clk 0:00:05]}
37. Qxe4 {[%clk 0:01:16]}  Nxe4 {[%clk 0:01:16]} 38. Ke2 {[%clk 0:00:00]}  g5 {[%clk 0:01:04]} 39. Kd3 {[%clk 0:01:18]}  Nf6 {[%clk 0:01:16]}
40. Ne5 {[%clk 0:01:10]}  Nd5 {[%clk 0:01:12]} 41. Kc4 {[%clk 0:01:07]}  Ne3+ {[%clk 0:01:01]} 42. Kxb4 {[%clk 0:01:07]}  Nxg2 {[%clk 0:01:16]}
43. Ka5 {[%clk 0:00:00]}  Kg7 {[%clk 0:01:16]} 44. Kxa6 {[%clk 0:00:00]}  Ne3 {[%clk 0:01:16]} 45. b4 {[%clk 0:00:00]}  g4 {[%clk 0:01:16]}
46. b5 {[%clk 0:00:00]}  h5 {[%clk 0:01:16]} 47. b6 {[%clk 0:00:00]}  h4 {[%clk 0:03:02]} 48. h3 {[%clk 0:03:02]} 1/2-1/2

[Event "2026 Biel Blitz Open"]
[Site "Biel, CH"]
[Date "2026.07.19"]
[Round "6"]
[White "Kelecevic, Nedeljko"]
[Black "Clausen, Martin"]
[Result "0-1"]
[Board "23"]
[TimeControl "180+2"]
[WhiteFideId "14400537"]
[BlackFideId "1314882"]
[WhiteElo "2150"]
[BlackElo "1956"]
[WhiteTitle "IM"]
[WhiteClock "0:01:17"]
[BlackClock "0:02:12"]
[Variant "Standard"]
[EndDate "2026.07.19"]
[EndTime "13:31:26"]

1. d4 {[%clk 0:03:02]}  Nf6 {[%clk 0:03:02]} 2. c4 {[%clk 0:03:03]}  c5 {[%clk 0:03:03]} 3. d5 {[%clk 0:03:04]}  b5 {[%clk 0:03:04]}
4. cxb5 {[%clk 0:03:05]}  a6 {[%clk 0:03:05]} 5. bxa6 {[%clk 0:03:06]}  g6 {[%clk 0:03:05]} 6. Nc3 {[%clk 0:03:07]}  Bxa6 {[%clk 0:03:06]}
7. Nf3 {[%clk 0:03:07]}  Bg7 {[%clk 0:03:06]} 8. e4 {[%clk 0:03:08]}  Bxf1 {[%clk 0:03:07]} 9. Kxf1 {[%clk 0:03:08]}  d6 {[%clk 0:03:07]}
10. g3 {[%clk 0:03:07]}  O-O {[%clk 0:03:07]} 11. Kg2 {[%clk 0:03:08]}  Nbd7 {[%clk 0:03:07]} 12. h3 {[%clk 0:03:09]}  Qb6 {[%clk 0:03:08]}
13. Re1 {[%clk 0:03:07]}  Rfb8 {[%clk 0:03:09]} 14. e5 {[%clk 0:02:55]}  Ne8 {[%clk 0:03:10]} 15. e6 {[%clk 0:02:37]}  fxe6 {[%clk 0:02:51]}
16. dxe6 {[%clk 0:02:38]}  Ndf6 {[%clk 0:02:45]} 17. Re2 {[%clk 0:02:16]}  Nc7 {[%clk 0:02:39]} 18. Bg5 {[%clk 0:02:15]}  Qb7 {[%clk 0:02:22]}
19. Bxf6 {[%clk 0:02:01]}  Bxf6 {[%clk 0:02:23]} 20. Ne4 {[%clk 0:01:55]}  Bg7 {[%clk 0:02:22]} 21. Kh2 {[%clk 0:01:47]}  Qd5 {[%clk 0:02:17]}
22. Nc3 {[%clk 0:01:17]}  Qxf3 {[%clk 0:02:12]} 0-1

[Event "2026 Biel Blitz Open"]
[Site "Biel, CH"]
[Date "2026.07.19"]
[Round "6"]
[White "Gireada, Daniel"]
[Black "Garcia, Miguel"]
[Result "0-1"]
[Board "24"]
[TimeControl "180+2"]
[WhiteFideId "1206451"]
[BlackFideId "1317431"]
[WhiteElo "2148"]
[BlackElo "1938"]
[WhiteClock "0:00:04"]
[BlackClock "0:00:26"]
[Variant "Standard"]
[EndDate "2026.07.19"]
[EndTime "13:38:57"]

1. d4 {[%clk 0:03:03]}  Nf6 {[%clk 0:03:02]} 2. c4 {[%clk 0:03:03]}  g6 {[%clk 0:03:03]} 3. Nf3 {[%clk 0:03:03]}  Bg7 {[%clk 0:03:04]}
4. g3 {[%clk 0:03:01]}  O-O {[%clk 0:03:03]} 5. Bg2 {[%clk 0:03:02]}  d6 {[%clk 0:03:05]} 6. Nc3 {[%clk 0:03:02]}  Nbd7 {[%clk 0:02:59]}
7. O-O {[%clk 0:03:02]}  c6 {[%clk 0:02:59]} 8. e4 {[%clk 0:03:00]}  Qc7 {[%clk 0:02:58]} 9. Re1 {[%clk 0:02:57]}  e5 {[%clk 0:02:54]}
10. dxe5 {[%clk 0:02:48]}  Nxe5 {[%clk 0:02:50]} 11. Nxe5 {[%clk 0:02:42]}  dxe5 {[%clk 0:02:49]} 12. c5 {[%clk 0:02:38]}  Rd8 {[%clk 0:02:47]}
13. Qc2 {[%clk 0:02:34]}  Be6 {[%clk 0:02:39]} 14. h3 {[%clk 0:02:29]}  h6 {[%clk 0:02:39]} 15. Be3 {[%clk 0:02:30]}  Rd7 {[%clk 0:02:37]}
16. Rad1 {[%clk 0:02:27]}  Rad8 {[%clk 0:02:37]} 17. b3 {[%clk 0:02:11]}  Nh5 {[%clk 0:02:24]} 18. Qc1 {[%clk 0:02:01]}  Kh7 {[%clk 0:02:23]}
19. Na4 {[%clk 0:01:51]}  Qc8 {[%clk 0:02:03]} 20. Kh2 {[%clk 0:01:49]}  Nf6 {[%clk 0:01:50]} 21. Nb2 {[%clk 0:01:43]}  Rxd1 {[%clk 0:01:36]}
22. Rxd1 {[%clk 0:01:43]}  Rxd1 {[%clk 0:01:36]} 23. Qxd1 {[%clk 0:01:44]}  Qd7 {[%clk 0:01:37]} 24. Qxd7 {[%clk 0:01:40]}  Nxd7 {[%clk 0:01:37]}
25. Bf1 {[%clk 0:01:36]}  Bf8 {[%clk 0:01:36]} 26. Na4 {[%clk 0:01:26]}  Nf6 {[%clk 0:01:12]} 27. Bd3 {[%clk 0:01:25]}  Kg7 {[%clk 0:01:06]}
28. Kg2 {[%clk 0:01:17]}  Ne8 {[%clk 0:00:57]} 29. Nb2 {[%clk 0:01:14]}  Nc7 {[%clk 0:00:55]} 30. Nc4 {[%clk 0:01:07]}  f6 {[%clk 0:00:50]}
31. Nd6 {[%clk 0:01:04]}  Bxd6 {[%clk 0:00:45]} 32. cxd6 {[%clk 0:01:05]}  Ne8 {[%clk 0:00:43]} 33. Bxa7 {[%clk 0:01:00]}  Nxd6 {[%clk 0:00:43]}
34. Bc5 {[%clk 0:00:55]}  Nb5 {[%clk 0:00:37]} 35. Kf3 {[%clk 0:00:47]}  Nc3 {[%clk 0:00:26]} 36. Ke3 {[%clk 0:00:29]}  Nxa2 {[%clk 0:00:23]}
37. Bc4 {[%clk 0:00:23]}  Bxc4 {[%clk 0:00:22]} 38. bxc4 {[%clk 0:00:24]}  Nc3 {[%clk 0:00:23]} 39. Kd3 {[%clk 0:00:19]}  Na4 {[%clk 0:00:24]}
40. Bb4 {[%clk 0:00:17]}  Nb6 {[%clk 0:00:25]} 41. c5 {[%clk 0:00:22]}  Nd7 {[%clk 0:00:26]} 42. Kc4 {[%clk 0:00:23]}  Kf7 {[%clk 0:00:27]}
43. Ba5 {[%clk 0:00:23]}  Ke6 {[%clk 0:00:27]} 44. f4 {[%clk 0:00:22]}  exf4 {[%clk 0:00:26]} 45. gxf4 {[%clk 0:00:23]}  f5 {[%clk 0:00:26]}
46. e5 {[%clk 0:00:24]}  g5 {[%clk 0:00:26]} 47. fxg5 {[%clk 0:00:20]}  hxg5 {[%clk 0:00:27]} 48. Bd8 {[%clk 0:00:21]}  g4 {[%clk 0:00:27]}
49. hxg4 {[%clk 0:00:22]}  fxg4 {[%clk 0:00:27]} 50. Bh4 {[%clk 0:00:11]}  Nxe5+ {[%clk 0:00:27]} 51. Kc3 {[%clk 0:00:11]}  Nf3 {[%clk 0:00:25]}
52. Bg3 {[%clk 0:00:13]}  Kd5 {[%clk 0:00:26]} 53. Kd3 {[%clk 0:00:11]}  Kxc5 {[%clk 0:00:27]} 54. Ke3 {[%clk 0:00:11]}  Kd5 {[%clk 0:00:26]}
55. Kf4 {[%clk 0:00:12]}  Nd2 {[%clk 0:00:23]} 56. Kxg4 {[%clk 0:00:12]}  b5 {[%clk 0:00:24]} 57. Kf4 {[%clk 0:00:12]}  c5 {[%clk 0:00:24]}
58. Ke3 {[%clk 0:00:13]}  Nc4+ {[%clk 0:00:25]} 59. Kd3 {[%clk 0:00:14]}  Nb6 {[%clk 0:00:25]} 60. Kc3 {[%clk 0:00:14]}  Na4+ {[%clk 0:00:25]}
61. Kb3 {[%clk 0:00:15]}  Kd4 {[%clk 0:00:23]} 62. Bf2+ {[%clk 0:00:16]}  Kd3 {[%clk 0:00:24]} 63. Be1 {[%clk 0:00:13]}  Nb6 {[%clk 0:00:23]}
64. Ba5 {[%clk 0:00:11]}  Nd5 {[%clk 0:00:24]} 65. Bd8 {[%clk 0:00:11]}  c4+ {[%clk 0:00:24]} 66. Kb2 {[%clk 0:00:10]}  b4 {[%clk 0:00:25]}
67. Ba5 {[%clk 0:00:06]}  c3+ {[%clk 0:00:25]} 68. Kc1 {[%clk 0:00:04]}  b3 {[%clk 0:00:26]} 0-1

[Event "2026 Biel Blitz Open"]
[Site "Biel, CH"]
[Date "2026.07.19"]
[Round "6"]
[White "Floure, Alexan"]
[Black "Matsumura, Cocoro"]
[Result "0-1"]
[Board "25"]
[TimeControl "180+2"]
[WhiteFideId "1346610"]
[BlackFideId "36087114"]
[WhiteElo "1960"]
[BlackElo "2131"]
[BlackTitle "CM"]
[WhiteClock "0:00:05"]
[BlackClock "0:00:21"]
[Variant "Standard"]
[EndDate "2026.07.19"]
[EndTime "13:39:05"]

1. d4 {[%clk 0:03:02]}  d5 {[%clk 0:03:04]} 2. Nf3 {[%clk 0:03:02]}  Nf6 {[%clk 0:03:05]} 3. c4 {[%clk 0:03:02]}  e6 {[%clk 0:03:06]}
4. Nc3 {[%clk 0:03:02]}  a6 {[%clk 0:03:07]} 5. a4 {[%clk 0:02:53]}  Bb4 {[%clk 0:03:04]} 6. Bd2 {[%clk 0:02:46]}  O-O {[%clk 0:03:03]}
7. e3 {[%clk 0:02:46]}  b6 {[%clk 0:03:01]} 8. Qb3 {[%clk 0:02:40]}  a5 {[%clk 0:02:54]} 9. Ne5 {[%clk 0:02:33]}  Bb7 {[%clk 0:02:50]}
10. cxd5 {[%clk 0:02:26]}  Nxd5 {[%clk 0:02:50]} 11. Bd3 {[%clk 0:02:08]}  Nd7 {[%clk 0:02:49]} 12. Nf3 {[%clk 0:01:36]}  c5 {[%clk 0:02:44]}
13. O-O {[%clk 0:01:28]}  cxd4 {[%clk 0:02:45]} 14. Nxd4 {[%clk 0:01:25]}  Nc5 {[%clk 0:02:45]} 15. Qc2 {[%clk 0:01:22]}  Nxd3 {[%clk 0:02:46]}
16. Qxd3 {[%clk 0:01:22]}  Rc8 {[%clk 0:02:37]} 17. Ncb5 {[%clk 0:01:12]}  Bc5 {[%clk 0:02:26]} 18. Rac1 {[%clk 0:01:09]}  Qh4 {[%clk 0:02:16]}
19. Nf3 {[%clk 0:00:57]}  Qh5 {[%clk 0:02:09]} 20. Qe2 {[%clk 0:00:38]}  Nf6 {[%clk 0:01:52]} 21. Nfd4 {[%clk 0:00:35]}  Qg6 {[%clk 0:01:53]}
22. f3 {[%clk 0:00:30]}  e5 {[%clk 0:01:53]} 23. Nb3 {[%clk 0:00:30]}  Be7 {[%clk 0:01:46]} 24. Bc3 {[%clk 0:00:30]}  Bd5 {[%clk 0:01:34]}
25. Nd2 {[%clk 0:00:29]}  e4 {[%clk 0:01:11]} 26. f4 {[%clk 0:00:30]}  Bc5 {[%clk 0:01:08]} 27. Bd4 {[%clk 0:00:31]}  Nd7 {[%clk 0:01:02]}
28. Rfd1 {[%clk 0:00:29]}  Bxd4 {[%clk 0:00:54]} 29. Nxd4 {[%clk 0:00:30]}  Nc5 {[%clk 0:00:52]} 30. b3 {[%clk 0:00:25]}  Nd3 {[%clk 0:00:51]}
31. Rb1 {[%clk 0:00:21]}  h6 {[%clk 0:00:47]} 32. Nf1 {[%clk 0:00:17]}  Rc3 {[%clk 0:00:38]} 33. Ng3 {[%clk 0:00:16]}  Rfc8 {[%clk 0:00:36]}
34. f5 {[%clk 0:00:16]}  Qg5 {[%clk 0:00:28]} 35. Qd2 {[%clk 0:00:13]}  h5 {[%clk 0:00:21]} 36. Nge2 {[%clk 0:00:13]}  R3c5 {[%clk 0:00:19]}
37. Nf4 {[%clk 0:00:14]}  Nxf4 {[%clk 0:00:17]} 38. exf4 {[%clk 0:00:15]}  Qf6 {[%clk 0:00:17]} 39. Qf2 {[%clk 0:00:13]}  h4 {[%clk 0:00:15]}
40. Qe3 {[%clk 0:00:10]}  Rc3 {[%clk 0:00:16]} 41. Qf2 {[%clk 0:00:10]}  e3 {[%clk 0:00:17]} 42. Qe2 {[%clk 0:00:10]}  Be4 {[%clk 0:00:18]}
43. Ra1 {[%clk 0:00:10]}  Qh6 {[%clk 0:00:13]} 44. Qg4 {[%clk 0:00:08]}  Qf6 {[%clk 0:00:08]} 45. Nf3 {[%clk 0:00:07]}  Rc2 {[%clk 0:00:08]}
46. Qg5 {[%clk 0:00:06]}  Qxg5 {[%clk 0:00:08]} 47. fxg5 {[%clk 0:00:07]}  h3 {[%clk 0:00:10]} 48. Ne1 {[%clk 0:00:05]}  Rb2 {[%clk 0:00:08]}
49. gxh3 {[%clk 0:00:03]}  Bxf5 {[%clk 0:00:08]} 50. Nf3 {[%clk 0:00:01]}  Bxh3 {[%clk 0:00:07]} 51. Rac1 {[%clk 0:00:05]}  Rxc1 {[%clk 0:00:08]}
52. Rxc1 {[%clk 0:00:06]}  Bg4 {[%clk 0:00:09]} 53. Nd4 {[%clk 0:00:06]}  e2 {[%clk 0:00:09]} 54. Kf2 {[%clk 0:00:08]}  Kh7 {[%clk 0:00:11]}
55. Re1 {[%clk 0:00:09]}  Kg6 {[%clk 0:00:11]} 56. h4 {[%clk 0:00:11]}  Kh5 {[%clk 0:00:12]} 57. Rh1 {[%clk 0:00:09]}  e1=Q+ {[%clk 0:00:08]}
58. Kxe1 {[%clk 0:00:09]}  Rb1+ {[%clk 0:00:13]} 59. Kf2 {[%clk 0:00:09]}  Rxh1 {[%clk 0:00:14]} 60. Kg3 {[%clk 0:00:06]}  Rg1+ {[%clk 0:00:15]}
61. Kf2 {[%clk 0:00:06]}  Rd1 {[%clk 0:00:15]} 62. Nb5 {[%clk 0:00:05]}  Kxh4 {[%clk 0:00:16]} 63. Na7 {[%clk 0:00:05]}  Kxg5 {[%clk 0:00:17]}
64. Nc8 {[%clk 0:00:06]}  Rd2+ {[%clk 0:00:17]} 65. Ke3 {[%clk 0:00:07]}  Re2+ {[%clk 0:00:18]} 66. Kd3 {[%clk 0:00:09]}  Kf4 {[%clk 0:00:19]}
67. Nxb6 {[%clk 0:00:06]}  Re3+ {[%clk 0:00:20]} 68. Kc4 {[%clk 0:00:08]}  Be6+ {[%clk 0:00:21]} 69. Kd4 {[%clk 0:00:07]}  Rxb3 {[%clk 0:00:21]}
70. Kc5 {[%clk 0:00:05]}  Rxb6 {[%clk 0:00:21]} 0-1

[Event "2026 Biel Blitz Open"]
[Site "Biel, CH"]
[Date "2026.07.19"]
[Round "6"]
[White "Waelti, Thomas"]
[Black "Erne, Raphael"]
[Result "0-1"]
[Board "26"]
[TimeControl "180+2"]
[WhiteFideId "1303996"]
[BlackFideId "1341928"]
[WhiteElo "1940"]
[BlackElo "2128"]
[WhiteClock "0:00:05"]
[BlackClock "0:00:50"]
[Variant "Standard"]
[EndDate "2026.07.19"]
[EndTime "13:38:23"]

1. e4 {[%clk 0:03:03]}  c6 {[%clk 0:03:03]} 2. d4 {[%clk 0:03:03]}  d5 {[%clk 0:03:04]} 3. exd5 {[%clk 0:03:03]}  cxd5 {[%clk 0:03:05]}
4. Bd3 {[%clk 0:03:03]}  Nc6 {[%clk 0:03:06]} 5. Nf3 {[%clk 0:03:04]}  Bg4 {[%clk 0:03:06]} 6. c3 {[%clk 0:03:01]}  Qc7 {[%clk 0:03:07]}
7. O-O {[%clk 0:03:01]}  e6 {[%clk 0:03:07]} 8. h3 {[%clk 0:03:00]}  Bh5 {[%clk 0:03:07]} 9. Be3 {[%clk 0:02:42]}  Bd6 {[%clk 0:03:07]}
10. Nbd2 {[%clk 0:02:41]}  Nf6 {[%clk 0:02:58]} 11. Qa4 {[%clk 0:02:36]}  O-O {[%clk 0:02:54]} 12. Rae1 {[%clk 0:02:33]}  a6 {[%clk 0:02:54]}
13. Qc2 {[%clk 0:02:31]}  Rac8 {[%clk 0:02:49]} 14. a3 {[%clk 0:02:18]}  Bg6 {[%clk 0:02:47]} 15. Bxg6 {[%clk 0:02:18]}  hxg6 {[%clk 0:02:48]}
16. Nb3 {[%clk 0:02:06]}  Na5 {[%clk 0:02:35]} 17. Nc5 {[%clk 0:01:53]}  Nc4 {[%clk 0:02:33]} 18. Bc1 {[%clk 0:01:31]}  Bxc5 {[%clk 0:02:29]}
19. dxc5 {[%clk 0:01:31]}  Qxc5 {[%clk 0:02:30]} 20. Ng5 {[%clk 0:01:13]}  Nd6 {[%clk 0:02:20]} 21. Be3 {[%clk 0:01:10]}  Qc6 {[%clk 0:02:18]}
22. Bd4 {[%clk 0:01:05]}  Nf5 {[%clk 0:02:16]} 23. Be3 {[%clk 0:00:53]}  d4 {[%clk 0:02:06]} 24. Bf4 {[%clk 0:00:44]}  dxc3 {[%clk 0:02:04]}
25. bxc3 {[%clk 0:00:43]}  Qxc3 {[%clk 0:02:04]} 26. Qxc3 {[%clk 0:00:37]}  Rxc3 {[%clk 0:02:05]} 27. g4 {[%clk 0:00:38]}  Ne7 {[%clk 0:01:40]}
28. Bd6 {[%clk 0:00:36]}  Re8 {[%clk 0:01:40]} 29. Rb1 {[%clk 0:00:33]}  b5 {[%clk 0:01:35]} 30. Rfd1 {[%clk 0:00:30]}  Ned5 {[%clk 0:01:32]}
31. a4 {[%clk 0:00:19]}  Rc4 {[%clk 0:01:11]} 32. axb5 {[%clk 0:00:18]}  Nc3 {[%clk 0:01:13]} 33. b6 {[%clk 0:00:11]}  Nxd1 {[%clk 0:00:58]}
34. b7 {[%clk 0:00:05]}  Nd7 {[%clk 0:00:50]} 35. Ra1 {[%clk 0:00:05]} 0-1

[Event "2026 Biel Blitz Open"]
[Site "Biel, CH"]
[Date "2026.07.19"]
[Round "6"]
[White "Coban, Ege"]
[Black "Ragavan, Samarth Rajesh"]
[Result "0-1"]
[Board "27"]
[TimeControl "180+2"]
[WhiteFideId "26320304"]
[BlackFideId "39918106"]
[WhiteElo "1936"]
[BlackElo "2101"]
[WhiteClock "0:00:16"]
[BlackClock "0:00:08"]
[Variant "Standard"]
[EndDate "2026.07.19"]
[EndTime "13:36:00"]

1. e4 {[%clk 0:03:03]}  c6 {[%clk 0:03:04]} 2. d4 {[%clk 0:03:04]}  d5 {[%clk 0:03:05]} 3. e5 {[%clk 0:03:06]}  c5 {[%clk 0:03:07]}
4. Nf3 {[%clk 0:03:05]}  cxd4 {[%clk 0:03:07]} 5. Qxd4 {[%clk 0:03:06]}  Nc6 {[%clk 0:03:08]} 6. Qf4 {[%clk 0:03:07]}  g6 {[%clk 0:03:08]}
7. Nc3 {[%clk 0:03:08]}  Bh6 {[%clk 0:03:03]} 8. Qg3 {[%clk 0:03:09]}  Bxc1 {[%clk 0:03:03]} 9. Rxc1 {[%clk 0:03:10]}  Nh6 {[%clk 0:02:57]}
10. Bd3 {[%clk 0:03:08]}  Nf5 {[%clk 0:02:55]} 11. Qf4 {[%clk 0:03:06]}  e6 {[%clk 0:02:50]} 12. h4 {[%clk 0:02:59]}  h5 {[%clk 0:02:35]}
13. O-O {[%clk 0:02:50]}  Bd7 {[%clk 0:02:34]} 14. Bxf5 {[%clk 0:02:46]}  gxf5 {[%clk 0:02:34]} 15. Nb5 {[%clk 0:02:47]}  Qb6 {[%clk 0:02:04]}
16. Nd6+ {[%clk 0:02:46]}  Kf8 {[%clk 0:02:05]} 17. Ng5 {[%clk 0:02:30]}  Be8 {[%clk 0:02:05]} 18. Rfe1 {[%clk 0:02:25]}  Qd4 {[%clk 0:01:56]}
19. Qg3 {[%clk 0:02:18]}  Rd8 {[%clk 0:01:44]} 20. Rcd1 {[%clk 0:02:17]}  Qg4 {[%clk 0:01:41]} 21. Qa3 {[%clk 0:02:19]}  Qb4 {[%clk 0:01:40]}
22. Qe3 {[%clk 0:02:12]}  d4 {[%clk 0:01:29]} 23. Qg3 {[%clk 0:01:52]}  Qxb2 {[%clk 0:01:09]} 24. Nxe6+ {[%clk 0:01:36]}  fxe6 {[%clk 0:01:10]}
25. Qg5 {[%clk 0:01:37]}  Rh7 {[%clk 0:00:53]} 26. Qf6+ {[%clk 0:01:32]}  Bf7 {[%clk 0:00:52]} 27. Rb1 {[%clk 0:01:33]}  Qc3 {[%clk 0:00:50]}
28. Rf1 {[%clk 0:01:13]}  b6 {[%clk 0:00:49]} 29. Rb3 {[%clk 0:01:11]}  Qc5 {[%clk 0:00:47]} 30. Re1 {[%clk 0:00:51]}  Rxd6 {[%clk 0:00:33]}
31. exd6 {[%clk 0:00:50]}  Qxd6 {[%clk 0:00:34]} 32. Qg5 {[%clk 0:00:32]}  Rg7 {[%clk 0:00:33]} 33. Qh6 {[%clk 0:00:33]}  Kg8 {[%clk 0:00:29]}
34. Rd1 {[%clk 0:00:22]}  Qd5 {[%clk 0:00:28]} 35. g3 {[%clk 0:00:22]}  Ne5 {[%clk 0:00:26]} 36. Qf4 {[%clk 0:00:18]}  Rg4 {[%clk 0:00:24]}
37. Qh6 {[%clk 0:00:15]}  Nf3+ {[%clk 0:00:24]} 38. Kf1 {[%clk 0:00:16]}  Qc4+ {[%clk 0:00:15]} 39. Rdd3 {[%clk 0:00:14]}  Ne5 {[%clk 0:00:15]}
40. Qd2 {[%clk 0:00:08]}  Nxd3 {[%clk 0:00:16]} 41. cxd3 {[%clk 0:00:09]}  Qc6 {[%clk 0:00:17]} 42. Rb2 {[%clk 0:00:11]}  Qh1+ {[%clk 0:00:16]}
43. Ke2 {[%clk 0:00:12]}  Qd5 {[%clk 0:00:16]} 44. Rc2 {[%clk 0:00:13]}  Kg7 {[%clk 0:00:16]} 45. Rc7 {[%clk 0:00:14]}  f4 {[%clk 0:00:15]}
46. gxf4 {[%clk 0:00:12]}  e5 {[%clk 0:00:16]} 47. f5 {[%clk 0:00:12]}  e4 {[%clk 0:00:14]} 48. f6+ {[%clk 0:00:13]}  Kg6 {[%clk 0:00:12]}
49. Re7 {[%clk 0:00:09]}  e3 {[%clk 0:00:10]} 50. Qb4 {[%clk 0:00:08]}  exf2 {[%clk 0:00:09]} 51. Kxf2 {[%clk 0:00:04]}  Qg2+ {[%clk 0:00:11]}
52. Ke1 {[%clk 0:00:05]}  Qg1+ {[%clk 0:00:12]} 53. Kd2 {[%clk 0:00:06]}  Rg2+ {[%clk 0:00:13]} 54. Re2 {[%clk 0:00:08]}  Qe3+ {[%clk 0:00:15]}
55. Kc2 {[%clk 0:00:08]}  Qxe2+ {[%clk 0:00:16]} 0-1